Cogmind - Beta 12 @@@ ROGUE MODE // 2024.01.03 @ 21:52:38 // Winter2019/RPGLIKE Player: badjay Result: Destroyed by L-31 Rogue with Katana Performance ------------- Evolutions (1) 500 Regions Visited (3) 600 Robots Destroyed (3) 15 Value Destroyed (70) 70 Prototype IDs (3) 60 Alien Tech Used (0) 0 Bonus (200) 200 TOTAL SCORE: 1445 Bonus ------- Pacifist 200 Cogmind --------- Core Integrity 0/600 Matter 300/300 Energy 85/100 System Corruption 2% Temperature Cool (6) Movement Core (50) Location -9/Mines Parts ------- > --- POWER (1) -------- (None) > --- PROPULSION (2) --- (None) > --- UTILITY (2) ------ Transport Network Coupler > --- WEAPON (1) ------- (None) > --- INVENTORY (0) ---- (None) Peak State ------------ > --- POWER ------------ (None) > --- PROPULSION ------- (None) > --- UTILITY ---------- Transport Network Coupler > --- WEAPON ----------- Improved EM Shotgun > --- INVENTORY -------- (None) [Rating: 4] Favorites ----------- Power None Propulsion None Utility Transport Network Coupler Processor Transport Network Coupler Weapon Improved EM Shotgun Energy Gun Improved EM Shotgun Build | -11 -10 -9 -9 ------- Run | Jun Mat Mat Min Slots Evolved 2 | 2 . . . Power . | . . . . Propulsion 1 | 1 . . . Utility 1 | 1 . . . Weapon . | . . . . Parts Attached 2 | . . 2 . Power . | . . . . Engine . | . . . . Core . | . . . . Reactor . | . . . . Propulsion . | . . . . Treads . | . . . . Leg . | . . . . Wheel . | . . . . Hover . | . . . . Flight . | . . . . Utility 1 | . . 1 . Device . | . . . . Storage . | . . . . Processor 1 | . . 1 . Hackware . | . . . . Protection . | . . . . Artifact . | . . . . Weapon 1 | . . 1 . Energy Gun 1 | . . 1 . Energy Cannon . | . . . . Ballistic Gun . | . . . . Ballistic Cannon . | . . . . Launcher . | . . . . Special Weapon . | . . . . Impact Weapon . | . . . . Slashing Weapon . | . . . . Piercing Weapon . | . . . . Special Melee Weapon . | . . . . Unidentified Prototypes 1 | . . 1 . Parts Lost . | . . . . Power . | . . . . Propulsion . | . . . . Utility . | . . . . Weapon . | . . . . Highest Loss Streak . | . . . . To Critical Strikes . | . . . . Average Slot Usage (%) 14 | . . 17 33 Processor 5 | . . 6 16 Energy Gun 8 | . . 10 16 Naked Turns 118 | . 64 54 . Heaviest Build 3 | . . 3 3 Greatest Support 3 | 3 3 3 3 Greatest Overweight (x) . | . . . . Average Overweight (x) . | . . . . Largest Inventory Capacity . | . . . . Average Capacity . | . . . . Most Carried . | . . . . Average Carried . | . . . . Final Capacity . | . . . . Final Carried . | . . . . Class Distribution -------------------- 100% | Hacker-Mutant Dominant Class ---------------- Hacker-Mutant | -10/Materials Hacker-Mutant | -9/Materials Hacker-Mutant | -9/Mines Resources | -11 -10 -9 -9 ----------- Run | Jun Mat Mat Min Matter Collected 158 | 86 . 72 . Remotely . | . . . . Salvage Created 121 | . . 121 . Parts 5 | . . 5 . Haulers Intercepted 1 | . . 1 . Recyclers Shooed . | . . . . Parts Field Recycled . | . . . . Retrieved Matter . | . . . . Parts Self-Destructed . | . . . . Prevented . | . . . . Kills | -11 -10 -9 -9 ------- Run | Jun Mat Mat Min Combat Hostiles Destroyed 2 | . . 2 . Guns 2 | . . 2 . Classes Destroyed 2 | . . 2 . Hauler 1 | . . 1 . Grunt 2 | . . 2 . Best Kill Streak 2 | . . 2 . Combat Bots Only 2 | . . 2 . Max Kills in Single Turn 1 | . . 1 . Gunslinging . | . . . . Exploded . | . . . . Melee . | . . . . Uniques/NPCs Destroyed . | . . . . Combat | -11 -10 -9 -9 -------- Run | Jun Mat Mat Min Damage Taken 631 | . 319 131 181 Core 611 | . 319 115 177 Absorbed by Shields . | . . . . Redirected to Core 67 | . . 57 10 Core Remaining (%) 73 | 100 46 . . Volleys Fired 12 | . . 9 3 Largest 1 | . . 1 1 Hottest 45 | . . 45 45 Shots Fired 12 | . . 9 3 Gun 12 | . . 9 3 Cannon . | . . . . Launcher . | . . . . Special . | . . . . Kinetic . | . . . . Thermal . | . . . . Explosive . | . . . . Electromagnetic 12 | . . 9 3 Robot Hit Streak 4 | . . 4 2 Robot Miss Streak 2 | . . 2 2 Penetration Max . | . . . . Secondary Targets . | . . . . Shots Hit Robots 11 | . . 9 2 Core Hits 11 | . 1 7 3 Critical Kills . | . . . . Critical Parts Destroyed . | . . . . Critical Strikes . | . . . . Melee Attacks . | . . . . Impact . | . . . . Slashing . | . . . . Piercing . | . . . . Sneak Attacks . | . . . . Combat Hostiles . | . . . . Follow-up Attacks . | . . . . Damage Inflicted 320 | . 56 204 60 Guns 196 | . . 151 45 Cannons . | . . . . Explosions 46 | . . 46 . Melee . | . . . . Ramming 78 | . 56 7 15 Kinetic . | . . . . Thermal 46 | . . 46 . Explosive . | . . . . Electromagnetic 196 | . . 151 45 Impact . | . . . . Slashing . | . . . . Piercing . | . . . . Highest Corruption 2 | . . 2 2 Average Corruption 2 | . . 2 2 Corruption Purged . | . . . . Corruption Blocked . | . . . . Effects 3 | . . 2 1 Matter Fused 1 | . . . 1 Energy Discharges 1 | . . 1 . Data Loss (minor) 1 | . . 1 . Overload Shots . | . . . . Overflow Damage . | . . . . Projectiles . | . . . . Explosions . | . . . . Melee . | . . . . Knockbacks . | . . . . Impact . | . . . . Kinetic . | . . . . Secondary . | . . . . Self-Inflicted Damage 35 | . 25 3 7 Shots . | . . . . Rammed 21 | . 15 2 4 Targets Rammed 21 | . 15 2 4 Kicked . | . . . . Crushed . | . . . . Highest Temperature 25 | . . 19 25 Average Temperature 12 | . . 10 17 Received Heat Transfer 150 | . 36 72 42 Siege Activations . | . . . . Robots Corrupted . | . . . . Combat Hostiles . | . . . . Parts Fried 2 | . . 2 . Impact Corruptions . | . . . . Robots Melted . | . . . . Combat Hostiles . | . . . . Parts Melted 1 | . . 1 . Heat Transferred 50 | . . 50 . Parts Sabotaged . | . . . . Parts Stolen . | . . . . Parts Stripped . | . . . . Power Chain Reactions 1 | . . 1 . Missiles Intercepted . | . . . . Alert | -11 -10 -9 -9 ------- Run | Jun Mat Mat Min Peak Influence 86 | . 28 86 33 Initial 33 | . . 11 33 Average 26 | . 21 30 33 Maximum Alert Level . | . . . . Low Security (%) 100 | 100 100 100 100 Level 1 . | . . . . Level 2 . | . . . . Level 3 . | . . . . Level 4 . | . . . . Level 5 . | . . . . High Security . | . . . . Max Security . | . . . . Squads Dispatched 3 | . 2 1 . Investigation 3 | . 2 1 . Extermination . | . . . . Reinforcement . | . . . . Assault . | . . . . Garrison . | . . . . Intercept . | . . . . Searches Triggered . | . . . . Construction Impeded . | . . . . Haulers Reinforced . | . . . . Active Scanning Responses . | . . . . Cargo Convoy Interrupts . | . . . . Stealth | -11 -10 -9 -9 --------- Run | Jun Mat Mat Min Distress Signals 2 | . 1 1 . Communications Jammed . | . . . . Distress Signals . | . . . . Times Spotted 21 | . 11 7 3 Peak Tracking Total 11 | . 11 6 3 Tactical Retreats . | . . . . Traps | -11 -10 -9 -9 ------- Run | Jun Mat Mat Min Traps Triggered 1 | . 1 . . Indirectly . | . . . . Trap Hack Attempts . | . . . . Triggered . | . . . . Disarmed . | . . . . Reprogrammed . | . . . . Reused . | . . . . Traps Extracted . | . . . . Installed . | . . . . Triggered . | . . . . Machines | -11 -10 -9 -9 ---------- Run | Jun Mat Mat Min Machines Disabled . | . . . . Max in Single Turn . | . . . . Machines Repaired . | . . . . Machines Sabotaged . | . . . . Overloaded Fab Kills . | . . . . Hacking | -11 -10 -9 -9 --------- Run | Jun Mat Mat Min Machines Accessed 5 | . 3 2 . Terminals 5 | . 3 2 . Fabricators . | . . . . Repair Stations . | . . . . Recycling Units . | . . . . Scanalyzers . | . . . . Garrison Access . | . . . . Total Hacks 16 | . 8 8 . Successful 11 | . 4 7 . Failed 5 | . 4 1 . Catastrophic 1 | . 1 . . Database Lockouts . | . . . . Manual 11 | . 5 6 . Terminals 16 | . 8 8 . Fabricators . | . . . . Repair Stations . | . . . . Recycling Units . | . . . . Scanalyzers . | . . . . Garrison Access . | . . . . Terminal Hacks 5 | . 2 3 . Prototype ID Bank 1 | . . 1 . Branch Access Points 1 | . 1 . . Terminal Index 1 | . 1 . . Alert Level 1 | . . 1 . Zone Layout 1 | . . 1 . Fabricator Hacks . | . . . . Repair Station Hacks . | . . . . Recycling Unit Hacks . | . . . . Scanalyzer . | . . . . Garrison Access Hacks . | . . . . Unauthorized Hacks 6 | . 2 4 . Terminals 6 | . 2 4 . Track 1 | . . 1 . Botnet 3 | . 2 1 . Detonate 1 | . . 1 . Operators 1 | . . 1 . Fabricators . | . . . . Repair Stations . | . . . . Recycling Units . | . . . . Scanalyzers . | . . . . Garrison Access . | . . . . Data Cores Recovered . | . . . . Used . | . . . . Hacking Detections 5 | . 3 2 . Full Trace Events 2 | . 1 1 . Feedback Events . | . . . . Feedback Blocked . | . . . . Robot Schematics Acquired . | . . . . Robots Built . | . . . . Authchips . | . . . . Time . | . . . . Total Robot Build Rating . | . . . . Part Schematics Acquired . | . . . . Parts Built . | . . . . Authchips . | . . . . Time . | . . . . Total Part Build Rating . | . . . . Parts Repaired . | . . . . Time . | . . . . Parts Recycled . | . . . . Recycled Matter . | . . . . Retrieved Matter . | . . . . Retrieved Components . | . . . . Parts Scanalyzed . | . . . . Part Schematics Acquired . | . . . . Parts Damaged . | . . . . Bothacking | -11 -10 -9 -9 ------------ Run | Jun Mat Mat Min Used RIF Installer . | . . . . Robots Hacked . | . . . . Non-combat . | . . . . Combat . | . . . . Robot Hacks Applied . | . . . . Relay Couplers Released . | . . . . Fabnet Peak Effective % . | . . . . Robots Rewired . | . . . . Allies Hacked . | . . . . Hacks Repelled . | . . . . Allies | -11 -10 -9 -9 -------- Run | Jun Mat Mat Min Total Allies . | . . . . Largest Group . | . . . . Highest-Rated Group . | . . . . Highest-Rated Ally . | . . . . Total Orders . | . . . . Ally Attacks . | . . . . Total Damage . | . . . . Kills . | . . . . Allies Corrupted . | . . . . Allies Melted . | . . . . Intel | -11 -10 -9 -9 ------- Run | Jun Mat Mat Min Robot Analysis Total . | . . . . Derelict Logs Recovered . | . . . . Drone Launches . | . . . . Drone Recoveries . | . . . . Exploration | -11 -10 -9 -9 ------------- Run | Jun Mat Mat Min Turns Passed 234 | 9 64 145 16 Spaces Moved 364 | 18 98 236 12 Core 364 | 18 98 236 12 Treads . | . . . . Legs . | . . . . Wheels . | . . . . Hover . | . . . . Flight . | . . . . Fastest Speed 50 | 50 50 50 50 Average Speed 50 | 50 50 50 50 Slowest Speed 50 | 50 50 50 50 Overloaded Moves . | . . . . Propulsion Burnouts . | . . . . Robots Hopped . | . . . . Cave-ins Triggered . | . . . . Exploration Rate (%) 12 | 3 27 14 7 Regions Visited 3 Branch Regions 1 Pre-discovered Areas . | . . . . Known Exits Taken . | . . . . Unknown Exits Taken 3 | 1 1 1 . Scrap Searched . | . . . . Spaces Dug . | . . . . Terrain Destroyed 3 | . . 3 . Melee . | . . . . Projectile . | . . . . AOE 3 | . . 3 . Terrain Rammed . | . . . . Walls Destroyed . | . . . . Machines Disabled . | . . . . Actions | -11 -10 -9 -9 --------- Run | Jun Mat Mat Min Total 400 | 17 112 252 19 Wait 4 | . . 4 . Move 361 | 17 97 235 12 Hop . | . . . . Pick Up . | . . . . Fast Attach 2 | . . 2 . Attach . | . . . . Detach . | . . . . Swap . | . . . . Drop . | . . . . Fire 12 | . . 9 3 Melee . | . . . . Ram 21 | . 15 2 4 Kick . | . . . . Crush . | . . . . Escape Stasis . | . . . . Rewire . | . . . . Trap . | . . . . Miscellaneous . | . . . . Route ------- -11/Junkyard -10/Materials (discovered 2 exits: *Mat / Min) -9/Materials -9/Mines History --------- Turn | Location | Event 1 | -11/Junkyard | Upgraded with Propulsion slot (x1) 1 | -11/Junkyard | Upgraded with Utility slot (x1) 4 | -11/Junkyard | Discovered new exit (range 12) 10 | -11/Junkyard | Entered Materials 12 | -10/Materials | Identified exit to Mines 66 | -10/Materials | Discovered new exit (range 16) 72 | -10/Materials | Core integrity fell below 50% 74 | -10/Materials | Entered another Materials area 75 | -9/Materials | Core integrity fell below 50% 76 | -9/Materials | Reached level 2 212 | -9/Materials | Discovered new exit (range 16) 219 | -9/Materials | Entered Mines 231 | -9/Mines | Core integrity fell below 20% 235 | -9/Mines | Destroyed by L-31 Rogue with Katana Last Messages --------------- >>Trojan(Detonate) Trojan loaded successfully. Testing... Scanning machine control network... Found 7 applicable machines. HUQ1PLHB7T: Fusion Modulator T99XUA7X8Y: Fusion Modulator PK8NRQ2ZPL: Nuclear Reactor OJTZOOIROM: Nuclear Reactor Q10EFI15JQ: Nuclear Reactor TOZF8JE4WN: Fusion Modulator DGWNTCLLYX: Fusion Modulator Infected machine control systems. 00215_ Terminal disabled. LOCATION=UNKNOWN GOAL=ESCAPE 00220_ K-01 Serf collects debris. 00227_ System corrupted: Matter fused (-7). 00230_ Imp. EM Shotgun severed. 00231_ Slammed into L-31 Rogue. Map ----- +----------------------------------------------------+ | ???????????????????????????????????????? | | ???????????????????????????????????????? | | ???????????????????????????????????????? | | ???????????????????????????????????????? | | ???????????????????????????????????????? | | ???????????????????????????????????????? | | ???????????????????????????????????????? | | ???????????????????????????????????????? | | ???????????????????????????????????????? | | ???????????????????????????????????????? | | ????????#######????????????????????????? | | ????????# #????????????????????????? | | ????????# #????????????????????????? | | ????????# #????????????????????????? | | ????????# #????????????????????????? | | ????????# #????????????????????????? | | ????????# #????????????????????????? | | ????????# #????????????????????????? | | ????????### ##????????????????????????? | | ??????????# #####?????????????????????? | | ??????????# k #?????????????????????? | | ??????????# #?????????????????????? | | ??????????##### #?????????????????????? | | ??????????????# #?????????????????????? | | ??????????????#[ #?????????????????????? | | ??????????????#@g#?????????????????????? | | ??????????????#lg#?????????????????????? | | ?????????????? ????????????????????? | | ?????????????? ???????????????????? | | ?????????????# """ ??????????????????? | | ?????????????# """ ????????????????? | | ?????????????# """ ???????????????? | | ?????????????# ??????????????? | | ?????????????# ? #?????????????? | | ?????????????# ???? #?????????????? | | ?????????????####?????# ##?????????????? | | ????????????????????????#??????????????? | | ???????????????????????????????????????? | | ???????????????????????????????????????? | | ???????????????????????????????????????? | | ???????????????????????????????????????? | | ???????????????????????????????????????? | | ???????????????????????????????????????? | | ???????????????????????????????????????? | | ???????????????????????????????????????? | | ???????????????????????????????????????? | | ???????????????????????????????????????? | | ???????????????????????????????????????? | | ???????????????????????????????????????? | | ???????????????????????????????????????? | +----------------------------------------------------+ Best States ------------- Heat Dissipation 25 Energy Generation 5 Energy Capacity 100 Matter Stores 300 Matter Capacity 300 Sight Range 16 Robot Scan Range 10 Terrain Scan Density 110 Evasion (%) 50 Offensive Hacking 20 Item Schematics ----------------- None Robot Schematics ------------------ None Fabricated ------------ Nothing Alien Tech Used ----------------- None Achievements -------------- None Challenges ------------ None RPGLIKE | -11 -10 -9 -9 --------- Run | Jun Mat Mat Min Levels Raised 1 | . . 1 . XP Earned 5425 | 3000 140 1785 500 XP Spent 3550 | 3000 . 550 . Upgrades 12 | 6 . 6 . Propulsion Slot 1 | 1 . . . Utility Slot 1 | 1 . . . Sensor Range 5 | . . 5 . Terrain Scan Density 1 | . . 1 . Hack Attack % 4 | 4 . . . Protomatter Created 45 | . . 45 . Protomatter Decayed 45 | . . 45 . Game ------ Seed ElectronDefenseScanner Manual? 0 Play Time 00:04:49 Cumulative 149.7 hours Start 2024.01.03 @ 21:47:35 End 2024.01.03 @ 21:52:38 Sessions 1 Manual Loads 0 Difficulty Rogue Special Mode Winter2019/RPGLIKE Game No. 151 Rogue 151 Adventurer 0 Explorer 0 Win Type - Total 13 Types 11/0/0/1/0/0/1/0/0 Lore% 67 Gallery% 66 Achievement% 67 Wizard Run 0 Options --------- ASCII 0 Keyboard 0 Movement Numpad Keybinds 0 Fullscreen 1 Font 18/SmallcapsGlow Map View 76x50 Tactical HUD 1 Map Filters NONE Filters NONE Steam 1 RUN: 1580465c-1bcc-42e4-8c05-6118f376a1da